bitfinex-derivatives/quotes_BTCF0:USTF0_20210102
["timestamp","ask_amount","ask_price","bid_price","bid_amount"]
[1609576136457,1.85783158,29779.0,29773.0,0.11816]
[1609576136657,1.85783158,29779.0,29774.0,0.00038397]
[1609576136857,0.89643158,29775.0,29774.0,0.00038397]
[1609576137257,1.89643158,29775.0,29768.0,0.09736]
[1609576137458,1.89643158,29775.0,29760.0,0.10818]
[1609576137659,1.89643158,29775.0,29757.0,4.678]
[1609576137859,1.89643158,29775.0,29761.0,0.04137215]
[1609576138060,1.18043158,29775.0,29758.0,0.0413726]
[1609576138259,1.18043158,29775.0,29762.0,0.000384]
[1609576138458,3.8259,29763.0,29762.0,0.151604]
[1609576138659,3.8259,29763.0,29762.0,0.15122]
[1609576138859,4.00633158,29763.0,29762.0,0.151604]
[1609576139460,4.00633158,29763.0,29762.0,0.000384]
[1609576139864,4.00633158,29763.0,29757.0,0.00038405]
[1609576140062,4.00633158,29763.0,29762.0,0.00038405]
[1609576140361,4.00633158,29763.0,29758.0,0.00038405]
[1609576140763,3.8259,29763.0,29762.0,0.0003841]
[1609576140962,3.8259,29763.0,29756.0,0.0003841]
[1609576141163,3.8259,29763.0,29762.0,0.0003841]
[1609576141563,3.8259,29763.0,29757.0,0.0003841]
[1609576141765,3.8259,29763.0,29756.0,0.0003841]
[1609576141966,3.8259,29763.0,29758.0,0.0003841]
[1609576142169,3.8259,29763.0,29757.0,0.0003841]
[1609576142469,3.8259,29763.0,29759.0,0.0003841]
[1609576142871,0.18043158,29760.0,29758.0,0.0003841]
[1609576143070,0.5955,29759.0,29755.0,0.1771]
[1609576143571,0.5955,29759.0,29756.0,0.0003841]
[1609576144774,0.18043158,29757.0,29756.0,0.0003841]
[1609576146074,0.18043158,29757.0,29748.0,0.1199]
[1609576146273,4.5086,29751.0,29748.0,0.1199]
[1609576146474,4.5086,29751.0,29749.0,0.00038415]
[1609576146874,0.18043158,29750.0,29749.0,0.00038415]
[1609576148075,0.18043158,29750.0,29749.0,0.00038417]
[1609576155084,0.18043158,29750.0,29748.0,0.1199]
[1609576155284,4.943,29742.0,29741.0,0.1771]
[1609576155686,4.943,29742.0,29741.0,0.17748423]
[1609576156285,4.943,29742.0,29732.0,2.22867994]
[1609576156684,4.943,29742.0,29733.0,0.00038428]
[1609576156884,0.18043158,29734.0,29733.0,0.00038428]
[1609576157786,0.18043158,29734.0,29729.0,0.00038428]
[1609576158990,0.18043158,29730.0,29729.0,0.00038428]
[1609576164897,5.35113158,29730.0,29729.0,0.00038428]
[1609576165397,5.35113158,29730.0,29725.0,0.00038434]
[1609576165797,5.35113158,29730.0,29729.0,0.00038436]
[1609576165999,5.35113158,29730.0,29729.0,0.10798]
[1609576171005,5.35113158,29730.0,29718.0,4.4013]
[1609576171406,5.35113158,29730.0,29725.0,0.0003844]
[1609576171605,5.35113158,29730.0,29725.0,0.1475944]
[1609576172206,5.35113158,29730.0,29726.0,0.0003844]
[1609576173005,0.18043158,29727.0,29726.0,0.0003844]
[1609576173206,0.73683158,29727.0,29726.0,0.0003844]
[1609576174807,0.73478439,29727.0,29726.0,0.0003844]
[1609576181919,0.0273,29726.0,29725.0,0.14721]
[1609576182117,0.0273,29726.0,29713.0,0.18043158]
[1609576182319,4.8961,29726.0,29713.0,0.18043158]
[1609576182522,4.8961,29726.0,29714.0,0.04141929]
[1609576182720,4.8961,29726.0,29714.0,0.19958929]
[1609576183123,0.18043158,29715.0,29714.0,0.19958929]
[1609576183320,0.18043158,29715.0,29714.0,0.15817]
[1609576183520,0.18043158,29715.0,29714.0,0.19959007]
[1609576183721,5.08033158,29715.0,29714.0,0.19959007]
[1609576184921,5.08033158,29715.0,29714.0,0.15855444]
[1609576186724,0.18043158,29715.0,29714.0,0.15855444]
[1609576188330,0.83373158,29715.0,29714.0,0.15855453]
[1609576190933,0.83373158,29715.0,29710.0,0.1771]
[1609576191134,0.18043158,29711.0,29710.0,0.1771]
[1609576191633,4.74183158,29711.0,29710.0,0.17748151]
[1609576192234,0.18043158,29711.0,29710.0,0.17748151]
[1609576192434,0.18043158,29711.0,29710.0,0.00038151]
[1609576193034,0.18043158,29711.0,29707.0,0.00038154]
[1609576193236,0.18043158,29708.0,29707.0,0.00038154]
[1609576193438,0.18043158,29708.0,29706.0,0.12912]
[1609576193637,0.18043158,29708.0,29707.0,0.00038154]
[1609576194238,0.18043158,29708.0,29706.0,0.16346]
[1609576194440,0.18043158,29708.0,29707.0,0.00038152]
[1609576196241,0.18043158,29708.0,29706.0,0.16346]
[1609576199244,0.18043158,29708.0,29701.0,0.18043158]
[1609576199444,5.5631,29707.0,29701.0,0.18043158]
[1609576199645,5.5631,29707.0,29702.0,0.04143085]
[1609576199845,5.5631,29707.0,29702.0,0.18617085]
[1609576200045,0.18043158,29708.0,29702.0,0.18617085]
[1609576200247,0.18043158,29708.0,29703.0,0.00038152]
[1609576201048,0.18043158,29708.0,29703.0,0.04143046]
[1609576201251,0.18043158,29704.0,29703.0,0.04143046]
[1609576201847,0.18043158,29704.0,29703.0,0.78743046]
[1609576202849,0.14088,29724.0,29703.0,0.78743046]
[1609576203049,0.2839,29725.0,29704.0,0.1771]
[1609576203248,0.2839,29725.0,29714.0,0.18043158]
[1609576203448,0.2839,29725.0,29714.0,0.33825158]
[1609576203648,0.2839,29725.0,29715.0,0.00038147]
[1609576205251,0.18043158,29716.0,29715.0,0.00038147]
[1609576205752,0.17838412,29716.0,29715.0,0.04142221]
[1609576205953,0.17838412,29716.0,29715.0,0.84072221]
[1609576210859,0.0273,29726.0,29715.0,0.84072221]
[1609576211257,0.18043158,29719.0,29718.0,0.18043158]
[1609576211658,0.18043158,29719.0,29718.0,0.22185191]
[1609576213160,0.18043158,29719.0,29718.0,0.04142033]
[1609576213760,0.18043158,29719.0,29715.0,0.04142481]
[1609576213960,0.18043158,29719.0,29718.0,0.04142494]
[1609576214160,0.18043158,29719.0,29716.0,0.04142496]
[1609576214561,0.18043158,29719.0,29718.0,0.04142522]
[1609576214762,0.18043158,29719.0,29717.0,0.04142487]
[1609576214962,0.18043158,29719.0,29718.0,0.04142506]
[1609576215561,0.18043158,29719.0,29715.0,0.04142435]
[1609576216564,0.17838399,29719.0,29715.0,0.04142435]
[1609576217267,0.18043158,29716.0,29715.0,0.04142435]
[1609576221167,0.14405,29723.0,29715.0,0.04142435]
[1609576221367,0.18043158,29716.0,29715.0,0.04142435]
[1609576225274,0.18043158,29716.0,29715.0,0.22185593]
[1609576226572,0.17838378,29716.0,29715.0,0.22185593]
[1609576229576,0.17838378,29716.0,29715.0,0.30394586]
[1609576237995,0.17633607,29716.0,29715.0,2.34217619]
[1609576242201,4.06443607,29716.0,29715.0,2.34217619]
[1609576244206,5.06443607,29716.0,29715.0,2.34217619]
[1609576244406,5.06443607,29716.0,29715.0,0.30394586]
[1609576245607,5.06443607,29716.0,29715.0,0.22185593]
[1609576246207,5.06443607,29716.0,29715.0,0.04142435]
[1609576247008,5.06443607,29716.0,29713.0,0.1235285]
[1609576247206,5.06443607,29716.0,29715.0,0.04143068]
[1609576247607,5.06443607,29716.0,29714.0,0.04143041]
[1609576247808,4.06443607,29716.0,29713.0,0.04143034]
[1609576248008,4.06443607,29716.0,29715.0,0.04143046]
[1609576248409,5.06443607,29716.0,29714.0,0.0414304]
[1609576248608,1.17633607,29716.0,29715.0,0.04143113]
[1609576248809,6.77273607,29716.0,29715.0,0.04143113]
[1609576249208,6.77273607,29716.0,29713.0,0.04143163]
[1609576249410,5.77273607,29716.0,29713.0,0.04143163]
[1609576249608,6.77273607,29716.0,29713.0,0.04143163]
[1609576251411,1.17428785,29716.0,29713.0,0.04143163]
[1609576252012,4.7954,29714.0,29713.0,0.04143163]
[1609576252211,4.7954,29714.0,29709.0,0.04143449]
[1609576252510,4.7954,29714.0,29713.0,0.04143629]
[1609576252910,4.7954,29714.0,29710.0,0.04143637]
[1609576253110,4.7954,29714.0,29713.0,0.00038157]
[1609576253314,4.7954,29714.0,29711.0,0.04143657]
[1609576253512,0.18043158,29712.0,29709.0,0.04105529]
[1609576253714,1.0,29711.0,29709.0,0.04105529]
[1609576253912,1.0,29711.0,29708.0,2.04024833]
[1609576254112,0.18043158,29712.0,29710.0,0.04143865]
[1609576254314,0.18043158,29712.0,29709.0,0.04143973]
[1609576254514,4.8645,29710.0,29709.0,0.04143973]
[1609576254714,4.8645,29710.0,29708.0,2.04024833]
[1609576254915,4.8645,29710.0,29709.0,0.04143873]
[1609576255117,4.8645,29710.0,29707.0,0.04143841]
[1609576255516,4.8645,29710.0,29709.0,0.04143809]
[1609576255718,4.8645,29710.0,29708.0,0.04143821]
[1609576255917,4.8645,29710.0,29709.0,0.04143716]
[1609576256418,4.8645,29710.0,29706.0,2.0811317]
[1609576256817,4.8645,29710.0,29709.0,0.04143801]
[1609576257019,4.8645,29710.0,29707.0,0.04143813]
[1609576257218,4.8645,29710.0,29709.0,0.04143749]
[1609576257417,5.8645,29710.0,29709.0,0.04143749]
[1609576257619,6.04493158,29710.0,29705.0,1.6533302]
[1609576257817,6.04493158,29710.0,29706.0,0.00038163]
[1609576258618,6.04493158,29710.0,29707.0,0.0003817]
[1609576258819,6.04493158,29710.0,29707.0,0.00038172]
[1609576259221,6.04493158,29710.0,29701.0,2.24407152]
[1609576259420,6.04493158,29710.0,29702.0,0.00038173]
[1609576259621,5.8645,29710.0,29702.0,0.00038175]
[1609576260419,5.8645,29710.0,29696.0,0.00038178]
[1609576260820,5.8645,29710.0,29695.0,0.12371]
[1609576261019,5.8645,29710.0,29696.0,0.00038179]
[1609576261220,1.0,29710.0,29696.0,0.00038179]
[1609576261420,4.6901,29697.0,29696.0,0.00038179]
[1609576261620,1.0,29696.0,29687.0,2.24155778]
[1609576261819,1.0,29696.0,29687.0,1.93005778]
[1609576262019,1.0,29696.0,29687.0,1.84545778]
[1609576262222,1.0,29696.0,29687.0,1.80615778]
[1609576262420,1.0,29696.0,29688.0,0.00038185]
[1609576262621,5.6351,29689.0,29688.0,0.00038185]
[1609576262820,5.6351,29689.0,29684.0,0.5125227]
[1609576262821,6.6351,29689.0,29684.0,0.5125227]
[1609576263021,1.0,29689.0,29684.0,0.5125227]
[1609576263221,1.0,29689.0,29685.0,0.00038191]
[1609576263423,5.6573,29686.0,29685.0,0.00038191]
[1609576263623,6.83773158,29686.0,29685.0,0.00038191]
[1609576264024,5.83773158,29686.0,29677.0,0.00038193]
[1609576264224,5.83773158,29686.0,29685.0,0.00038193]
[1609576264423,5.83773158,29686.0,29677.0,0.00038193]
[1609576264825,1.0,29685.0,29676.0,0.13878]
[1609576265426,1.0,29685.0,29677.0,0.00038195]
[1609576265626,0.18043158,29678.0,29677.0,0.00038195]
[1609576265826,0.92143158,29678.0,29677.0,0.00038195]
[1609576266626,1.92143158,29678.0,29677.0,0.00038195]
[1609576267226,0.92143158,29678.0,29677.0,0.00038195]
[1609576268028,0.18043158,29678.0,29677.0,0.00038195]
[1609576268828,0.97983158,29678.0,29677.0,0.00038195]
[1609576269429,1.97983158,29678.0,29677.0,0.00038195]
[1609576269830,1.97983158,29678.0,29676.0,0.13878]
[1609576270032,1.97983158,29678.0,29660.0,0.18043158]
[1609576270230,1.18043158,29678.0,29649.0,0.1771]
[1609576270430,4.1551,29665.0,29649.0,0.1771]
[1609576270630,4.1551,29665.0,29650.0,0.00038204]
[1609576270831,4.1551,29665.0,29650.0,0.11906204]
[1609576271331,4.1551,29665.0,29651.0,0.00038209]
[1609576271532,4.1551,29665.0,29652.0,0.18043158]
[1609576271932,0.1012,29673.0,29651.0,0.00038209]
[1609576272134,0.1012,29673.0,29650.0,0.11868]
[1609576272333,4.0026,29652.0,29650.0,0.11868]
[1609576272735,0.2731,29665.0,29650.0,0.11448]
[1609576272935,5.177,29651.0,29650.0,8e-05]
[1609576273133,0.2731,29665.0,29650.0,8e-05]
[1609576273333,6.1891,29665.0,29643.0,4.7195]
[1609576273535,6.1891,29665.0,29650.0,0.13327]
[1609576273734,5.1891,29665.0,29650.0,0.13327]
[1609576273936,0.71096143,29659.0,29650.0,0.13327]
[1609576274335,0.71096143,29659.0,29651.0,0.00038232]
[1609576274737,0.71027894,29658.0,29651.0,0.00038232]
[1609576275337,0.71110516,29660.0,29652.0,4.2314]
[1609576275536,0.71110516,29660.0,29650.0,0.13327]
[1609576275735,0.18043158,29658.0,29655.0,0.18043158]
[1609576275936,0.18043158,29658.0,29650.0,0.13327]
[1609576277640,0.71111748,29662.0,29654.0,0.18043158]
[1609576278339,0.71111748,29662.0,29660.0,4.6379]
[1609576278541,0.98474649,29665.0,29660.0,4.78352]
[1609576278740,0.71164649,29665.0,29660.0,4.78352]
[1609576279543,0.712361,29668.0,29664.0,0.18043158]
[1609576280147,0.7137161,29672.0,29669.0,4.9208]
[1609576280543,0.7137161,29672.0,29669.0,5.08249]
[1609576281247,0.71462452,29677.0,29669.0,0.16169]
[1609576281647,0.71462452,29677.0,29675.0,0.18043158]
[1609576281848,0.71462452,29677.0,29675.0,0.31938158]
[1609576282047,0.71462452,29677.0,29675.0,0.3173309]
[1609576282749,0.71512368,29679.0,29675.0,0.3173309]
[1609576283650,0.18043158,29676.0,29675.0,0.3173309]
[1609576285049,0.18043158,29676.0,29675.0,0.13895]
[1609576287051,0.18043158,29676.0,29671.0,0.18043158]
[1609576287651,0.18043158,29672.0,29671.0,0.18043158]
[1609576289352,0.18043158,29672.0,29669.0,0.16169]
[1609576289553,0.18043158,29672.0,29651.0,0.1771]
[1609576289752,0.71276627,29685.0,29663.0,0.18043158]
[1609576289952,0.71276627,29685.0,29663.0,0.30045158]
[1609576290952,0.71276627,29685.0,29663.0,0.12002]
[1609576291152,0.0004111,29684.0,29663.0,0.12002]
[1609576291352,0.6473,29677.0,29663.0,0.12002]
[1609576291754,0.18043158,29664.0,29663.0,0.12002]
[1609576294957,0.18043158,29664.0,29658.0,0.18043158]
[1609576295660,0.18043158,29659.0,29658.0,0.18043158]
[1609576295860,0.2833,29676.0,29658.0,0.18043158]
[1609576296061,0.2833,29676.0,29658.0,0.32828158]
[1609576296260,0.00041112,29675.0,29658.0,0.32828158]
[1609576297661,0.00041112,29675.0,29666.0,0.18043158]
[1609576297861,0.00041112,29675.0,29666.0,0.28552158]
[1609576298061,0.00041112,29675.0,29666.0,0.10509]
[1609576298461,4.0542,29667.0,29666.0,0.10509]
[1609576298862,5.0546112,29667.0,29666.0,0.10509]
[1609576299261,4.0546112,29667.0,29666.0,0.10509]
[1609576299861,4.23504278,29667.0,29666.0,0.10509]
[1609576300763,5.23504278,29667.0,29666.0,0.10509]
[1609576301165,5.23504278,29667.0,29658.0,0.14785]
[1609576301364,5.23504278,29667.0,29641.0,4.8061]
[1609576301765,0.18043158,29651.0,29641.0,4.8061]
[1609576302165,0.18043158,29651.0,29642.0,0.00038228]
[1609576302366,0.18043158,29651.0,29642.0,0.13544228]
[1609576302767,0.18043158,29651.0,29643.0,0.00038228]
[1609576302968,0.17837936,29651.0,29643.0,0.00038228]
[1609576303868,0.18043158,29644.0,29643.0,0.18081386]
[1609576304069,0.2833,29662.0,29643.0,0.18081386]
[1609576304770,0.7431,29658.0,29644.0,0.00038228]
[1609576304970,0.00041128,29661.0,29644.0,0.00038228]
[1609576305171,4.5521,29655.0,29644.0,0.00038228]
[1609576305470,0.0004113,29654.0,29644.0,0.00038228]
[1609576305870,0.0004113,29654.0,29648.0,0.18043158]
[1609576306073,0.0004113,29654.0,29648.0,0.31987158]
[1609576306673,0.00041127,29661.0,29649.0,0.00038228]
[1609576306873,0.2833,29662.0,29649.0,0.00038228]
[1609576307074,0.00041124,29660.0,29649.0,0.00038228]
[1609576307372,0.00041124,29661.0,29649.0,0.00038228]
[1609576307572,0.00041124,29659.0,29649.0,0.00038228]
[1609576307973,0.2833,29662.0,29658.0,0.18043158]
[1609576308173,1.0,29675.0,29658.0,0.29281158]
[1609576308373,1.0,29675.0,29659.0,0.00038218]
[1609576308575,0.7093,29674.0,29659.0,0.00038218]
[1609576308776,0.70971118,29674.0,29659.0,0.00038218]
[1609576308975,0.00041118,29673.0,29659.0,0.00038218]
[1609576309177,0.28091118,29673.0,29658.0,0.11238]
[1609576309578,0.00041118,29672.0,29658.0,0.11238]
[1609576309778,0.00041118,29672.0,29659.0,0.00038149]
[1609576309978,0.00041118,29672.0,29660.0,0.18043158]
[1609576310180,0.00041118,29672.0,29659.0,0.00038149]
[1609576310379,0.00041118,29672.0,29658.0,0.11238]
[1609576311283,4.8086,29671.0,29658.0,0.11238]
[1609576311780,0.00041128,29670.0,29658.0,0.11238]
[1609576311981,0.18043158,29659.0,29658.0,0.11238]
[1609576312382,0.18084286,29659.0,29658.0,0.11238]
[1609576312584,0.18084286,29659.0,29658.0,0.11276157]
[1609576312986,0.18043158,29659.0,29658.0,0.11276157]
[1609576314188,0.17837984,29659.0,29658.0,0.11276157]
[1609576317289,0.2805,29673.0,29658.0,0.11276157]
[1609576317691,0.00041119,29672.0,29659.0,0.00038149]
[1609576317891,0.00041119,29672.0,29667.0,0.18043158]
[1609576318293,0.2805,29673.0,29668.0,0.00038149]
[1609576318996,0.00041119,29672.0,29668.0,0.00038149]
[1609576319396,0.2805,29673.0,29668.0,0.00038149]
[1609576319996,0.18043158,29669.0,29668.0,0.00038149]
[1609576320700,0.2805,29673.0,29668.0,0.00038149]
[1609576321705,0.16882,29683.0,29668.0,0.04149669]
[1609576321902,0.16882,29683.0,29677.0,0.18043158]
[1609576322501,0.16882,29683.0,29678.0,0.00038142]
[1609576324002,0.18043158,29679.0,29678.0,0.00038142]
[1609576329311,0.18043158,29679.0,29674.0,0.04148785]
[1609576329710,0.18043158,29679.0,29678.0,0.00038137]
[1609576329910,0.18043158,29679.0,29675.0,0.00038137]
[1609576330110,0.18043158,29679.0,29678.0,0.00038137]
[1609576330311,0.17838062,29679.0,29678.0,0.00038137]
[1609576330511,0.17838062,29679.0,29676.0,0.00038137]
[1609576330713,0.17838062,29679.0,29673.0,0.04148967]
[1609576330912,0.17838062,29679.0,29677.0,0.00038137]
[1609576331211,0.17838062,29679.0,29674.0,0.00038137]
[1609576331411,0.17838062,29679.0,29673.0,0.04148967]
[1609576331713,0.17838062,29679.0,29675.0,0.00038137]
[1609576332112,0.18043158,29676.0,29674.0,0.00038137]
[1609576332313,0.18043158,29676.0,29672.0,0.18043158]
[1609576332513,0.18043158,29676.0,29675.0,0.00038138]
[1609576332912,0.18043158,29676.0,29673.0,0.00038138]
[1609576333314,0.18043158,29676.0,29673.0,0.04148783]
[1609576334115,0.18043158,29676.0,29673.0,0.00038138]
[1609576334316,0.18043158,29676.0,29674.0,0.00038138]
[1609576334615,0.18043158,29676.0,29673.0,0.00038138]
[1609576335017,0.18043158,29676.0,29675.0,0.00038138]
[1609576335217,0.18043158,29676.0,29674.0,0.00038138]
[1609576335416,0.18043158,29676.0,29675.0,0.00038138]
[1609576335917,0.18043158,29676.0,29673.0,0.00038138]
[1609576336218,0.18043158,29676.0,29675.0,0.00038138]
[1609576336718,0.18043158,29676.0,29673.0,0.00038138]
[1609576337117,0.18043158,29676.0,29675.0,0.00038138]
[1609576337318,0.18043158,29676.0,29674.0,0.00038139]
[1609576337517,0.18043158,29676.0,29675.0,0.00038139]
[1609576338022,0.18043158,29676.0,29673.0,0.00038139]
[1609576338320,0.32500158,29676.0,29675.0,0.00038139]
[1609576338621,0.32500158,29676.0,29674.0,0.00038139]
[1609576338822,0.32500158,29676.0,29675.0,0.00038139]
[1609576339425,0.32500158,29676.0,29671.0,0.00038139]
[1609576339623,0.32500158,29676.0,29675.0,0.00038139]
[1609576339922,0.32500158,29676.0,29672.0,0.00038139]
[1609576340123,0.18043158,29673.0,29672.0,0.00038139]
[1609576340323,0.18043158,29673.0,29670.0,1.79195211]
[1609576340723,0.18043158,29673.0,29671.0,0.00038138]
[1609576341627,0.18043158,29673.0,29671.0,0.04148804]
[1609576342028,0.18043158,29673.0,29671.0,0.00038138]
[1609576342433,0.18043158,29673.0,29672.0,0.00038138]
[1609576342629,0.18043158,29673.0,29671.0,0.00038138]
[1609576342829,0.18043158,29673.0,29672.0,0.00038138]
[1609576343329,0.18043158,29673.0,29671.0,0.00038138]
[1609576343629,0.18043158,29673.0,29672.0,0.00038138]
[1609576344030,0.17838064,29673.0,29672.0,0.00038138]
[1609576344230,0.17838064,29673.0,29671.0,0.00038138]
[1609576344432,0.17838064,29673.0,29672.0,0.00038138]
[1609576344931,0.17838064,29673.0,29671.0,0.00038138]
[1609576345131,0.17838064,29673.0,29670.0,1.97282057]
[1609576345331,0.17838064,29673.0,29672.0,0.00038138]
[1609576345531,0.17838064,29673.0,29671.0,0.00038138]
[1609576346231,0.17838064,29673.0,29671.0,0.04148915]
[1609576350640,0.7816,29672.0,29671.0,0.04148915]
[1609576351039,0.7816,29672.0,29669.0,0.04149342]
[1609576351441,0.7816,29672.0,29671.0,0.04149437]
[1609576351640,0.7816,29672.0,29667.0,0.04149561]
[1609576351841,0.7816,29672.0,29671.0,0.00038146]
[1609576352039,0.7816,29672.0,29668.0,0.00038146]
[1609576352239,0.18043158,29669.0,29668.0,0.00038146]
[1609576352440,0.18043158,29669.0,29663.0,1.79371015]
[1609576352639,0.33127158,29669.0,29668.0,0.00038147]
[1609576352839,0.33127158,29669.0,29664.0,0.00038147]
[1609576353041,0.33127158,29669.0,29664.0,0.04149898]
[1609576353239,0.33127158,29669.0,29668.0,0.00038147]
[1609576353440,0.33127158,29669.0,29665.0,0.00038147]
[1609576353640,0.33127158,29669.0,29668.0,0.00038147]
[1609576353940,0.33127158,29669.0,29666.0,0.00038147]
[1609576354240,0.33127158,29669.0,29668.0,0.00038147]
[1609576354439,0.33127158,29669.0,29662.0,0.00038147]
[1609576354641,0.33127158,29669.0,29662.0,0.04150028]
[1609576355442,0.3292201,29669.0,29662.0,0.04150028]
[1609576355844,0.3292201,29669.0,29662.0,0.00038147]
[1609576356044,0.3292201,29669.0,29662.0,0.04150006]
[1609576356246,0.18043158,29663.0,29662.0,0.04150006]
[1609576356651,0.18043158,29663.0,29662.0,0.00038147]
[1609576356849,0.18043158,29663.0,29662.0,0.04149855]
[1609576357345,0.18043158,29663.0,29662.0,0.04111708]
[1609576357745,0.18043158,29663.0,29662.0,1.8345512]
[1609576363659,0.18043158,29663.0,29662.0,3.87376948]
[1609576364360,0.18043158,29663.0,29662.0,1.8345512]
[1609576365658,0.18043158,29663.0,29662.0,3.87454231]
[1609576367963,0.17838037,29663.0,29662.0,3.87454231]
[1609576370664,0.17838037,29663.0,29662.0,3.95676841]
[1609576376670,0.15084,29669.0,29662.0,6.20392464]
[1609576377072,5.1444,29675.0,29662.0,6.20392464]
[1609576377272,5.1444,29675.0,29663.0,0.12370777]
[1609576377572,0.14457,29676.0,29663.0,0.12370777]
[1609576377973,0.2825,29678.0,29663.0,0.12370777]
[1609576378573,0.2825,29678.0,29675.0,0.18043158]
[1609576379175,0.72413518,29687.0,29676.0,0.04148435]
[1609576379375,1.00268253,29688.0,29676.0,0.04148435]
[1609576379875,0.00041102,29687.0,29676.0,0.04148435]
[1609576380076,0.72468253,29688.0,29676.0,0.04148435]
[1609576380677,0.72468253,29688.0,29687.0,0.18043158]
[1609576380875,0.72468253,29688.0,29687.0,0.18080874]
[1609576381378,0.16444,29690.0,29687.0,0.18080874]
[1609576381776,0.72565429,29693.0,29687.0,0.18080874]
[1609576381978,0.72565429,29693.0,29688.0,0.00037712]
[1609576382178,0.18043158,29695.0,29688.0,0.00037712]
[1609576382579,0.18043158,29695.0,29694.0,0.18043158]
[1609576382981,0.18043158,29695.0,29694.0,0.1808087]
[1609576388890,0.43216,29699.0,29694.0,0.1808087]
[1609576389390,0.43216,29699.0,29695.0,0.000377]
[1609576390594,0.61259158,29699.0,29698.0,0.18043158]
[1609576391696,0.43216,29699.0,29698.0,0.18043158]
[1609576391896,0.43011068,29699.0,29698.0,0.18043158]
[1609576392096,0.43011068,29699.0,29698.0,4.57573158]
[1609576394197,0.16166,29699.0,29698.0,4.57573158]
[1609576394396,0.18043158,29708.0,29698.0,4.57573158]
[1609576394598,0.18043158,29708.0,29707.0,0.18043158]
[1609576397701,1.36328334,29716.0,29707.0,0.18043158]
[1609576397702,0.6376,29716.0,29707.0,0.77643158]
[1609576397902,0.72455553,29718.0,29707.0,0.18043158]
[1609576398103,0.72455553,29718.0,29709.0,4.1018]
[1609576398705,0.90498711,29718.0,29717.0,0.18043158]
[1609576398905,0.18043158,29718.0,29717.0,0.18043158]
[1609576400304,0.18043158,29718.0,29706.0,4.0276]
[1609576400504,0.31371158,29718.0,29706.0,4.0276]
[1609576400704,0.13328,29718.0,29713.0,0.18043158]
[1609576402606,0.18043158,29714.0,29713.0,0.18043158]
[1609576408015,1.18043158,29714.0,29713.0,0.18043158]
[1609576408214,1.18043158,29714.0,29696.0,0.1727]
[1609576408414,5.87913158,29714.0,29695.0,4.8608]
[1609576408614,0.00041069,29713.0,29705.0,0.18043158]
[1609576408814,1.0,29712.0,29705.0,0.18043158]
[1609576409017,1.0,29711.0,29705.0,0.18043158]
[1609576409415,0.00041073,29710.0,29705.0,0.18043158]
[1609576410718,0.18043158,29706.0,29705.0,0.18043158]
[1609576411116,0.30194231,29706.0,29705.0,0.18043158]
[1609576411316,1.30194231,29706.0,29695.0,4.8608]
[1609576411816,0.00041073,29705.0,29696.0,0.00037693]
[1609576412717,0.00041073,29705.0,29702.0,0.18043158]
[1609576414720,0.18043158,29703.0,29702.0,0.18043158]
[1609576415319,0.18084231,29703.0,29702.0,0.18043158]
[1609576415720,0.18084231,29703.0,29702.0,0.1808085]
[1609576418122,0.18043158,29703.0,29702.0,0.1808085]
[1609576420726,0.30153158,29706.0,29702.0,0.1808085]
[1609576421425,0.30153158,29706.0,29703.0,0.00037689]
[1609576421827,0.00041067,29705.0,29703.0,0.00037689]
[1609576422125,0.30153158,29706.0,29703.0,0.00037689]
[1609576422827,0.1211,29706.0,29705.0,0.18043158]
[1609576423027,0.15632,29712.0,29705.0,0.18043158]
[1609576423228,0.15632,29712.0,29705.0,0.18080845]
[1609576423429,0.00041067,29711.0,29706.0,0.00037687]
[1609576424731,0.00041067,29711.0,29710.0,0.18043158]
[1609576425331,0.00041067,29711.0,29710.0,0.18080845]
[1609576426635,0.15632,29712.0,29710.0,0.18080845]
[1609576426834,0.2922,29713.0,29710.0,0.18080845]
[1609576427231,0.2922,29713.0,29711.0,0.00037685]
[1609576430336,1.2922,29713.0,29711.0,0.00037685]
[1609576430740,5.3622,29712.0,29678.0,2.62965845]
[1609576430938,1.0,29711.0,29694.0,0.18043158]
[1609576431139,4.7812,29703.0,29695.0,0.04144878]
[1609576431337,1.0,29702.0,29695.0,0.00038093]
[1609576431739,1.0,29702.0,29696.0,0.00038099]
[1609576432140,1.0,29702.0,29695.0,0.00038099]
[1609576432441,0.00041077,29701.0,29697.0,0.00038102]
[1609576432640,0.00041077,29701.0,29696.0,0.00038104]
[1609576432842,0.18043158,29697.0,29696.0,0.00038104]
[1609576433040,1.32428158,29697.0,29694.0,0.18043158]
[1609576433243,1.32428158,29697.0,29696.0,0.00038106]
[1609576433440,1.32428158,29697.0,29695.0,0.00038106]
[1609576433741,1.32428158,29697.0,29696.0,0.00038106]
[1609576434241,1.32428158,29697.0,29695.0,0.00038106]
[1609576434542,1.32428158,29697.0,29696.0,0.00038106]
[1609576435044,1.32428158,29697.0,29695.0,0.00038106]
[1609576435344,1.32428158,29697.0,29696.0,0.00038106]
[1609576435543,0.32428158,29697.0,29696.0,0.00038106]
[1609576435843,0.32428158,29697.0,29695.0,0.00038106]
[1609576436144,0.32428158,29697.0,29696.0,0.00038106]
[1609576436646,0.32428158,29697.0,29695.0,0.00038106]
[1609576437047,0.32428158,29697.0,29696.0,0.00038106]
[1609576437446,0.32428158,29697.0,29695.0,0.00038106]
[1609576437749,0.32428158,29697.0,29696.0,0.00038106]
[1609576438349,0.32428158,29697.0,29695.0,0.00038104]
[1609576438550,0.32428158,29697.0,29696.0,0.00038104]
[1609576439049,0.32428158,29697.0,29695.0,0.00038104]
[1609576439250,0.32428158,29697.0,29696.0,0.00038104]
[1609576439850,0.32428158,29697.0,29695.0,0.00038104]
[1609576440051,0.32223216,29697.0,29696.0,0.00038104]
[1609576440353,0.32223216,29697.0,29695.0,0.00038104]
[1609576440652,0.32223216,29697.0,29696.0,0.00038104]
[1609576441251,0.32223216,29697.0,29694.0,4.24773158]
[1609576441252,0.32223216,29697.0,29695.0,0.00038104]
[1609576441451,0.32223216,29697.0,29694.0,4.24773158]
[1609576441951,0.32223216,29697.0,29695.0,0.00038103]
[1609576442352,0.14385,29697.0,29695.0,0.00038103]
[1609576442560,0.12667,29703.0,29695.0,0.00038103]
[1609576442762,0.10655,29712.0,29695.0,0.00038103]
[1609576442956,1.01159056,29713.0,29695.0,0.00038103]
[1609576443153,1.01159056,29713.0,29707.0,0.18043158]
[1609576443556,1.01159056,29713.0,29708.0,0.00038099]
[1609576443758,0.2922,29713.0,29708.0,0.00038099]
[1609576445155,0.18043158,29709.0,29708.0,0.00038099]
[1609576445355,0.31950158,29709.0,29708.0,0.00038099]
[1609576452567,0.13907,29709.0,29708.0,5.58278099]
[1609576452769,0.15795,29711.0,29708.0,5.58278099]
[1609576453170,0.15795,29711.0,29710.0,0.18043158]
[1609576453671,0.15795,29711.0,29710.0,0.18081243]